bitfinex-derivatives/quotes_SOLF0:USTF0_20260117
["timestamp","ask_amount","ask_price","bid_price","bid_amount"]
[1768687383455,2.99117973,144.18,144.14,0.04374299]
[1768687422080,2.99499635,144.17,144.1,6.2476]
[1768687422584,2.99499635,144.15,144.09,262.28]
[1768687423884,2.99499635,144.15,144.09,268.5281]
[1768687425279,2.99499635,144.13,144.07,3.20753006]
[1768687426881,2.99499635,144.13,144.07,9.45643006]
[1768687427984,2.99499635,144.13,144.08,9.45603006]
[1768687429186,2.99499635,144.13,144.08,11.18163269]
[1768687429486,2.99499635,144.13,144.08,11.18232468]
[1768687432586,2.99499635,144.13,144.08,3.20753006]
[1768687432791,2.99499635,144.13,144.06,273.53290366]
[1768687434189,2.99499635,144.13,144.06,9.52660904]
[1768687434489,2.99499635,144.13,144.06,11.25290366]
[1768687434789,2.99499635,144.13,144.07,262.32]
[1768687434983,2.99499635,144.13,144.08,262.32]
[1768687435987,2.99499635,144.13,144.08,262.34]
[1768687436492,2.99499635,144.13,144.06,11.25290366]
[1768687436792,2.99499635,144.13,144.09,262.34]
[1768687437690,0.04419612,144.12,144.07,6.249]
[1768687437890,0.04419612,144.12,144.07,9.52630904]
[1768687438091,0.04419612,144.12,144.08,262.34]
[1768687445201,3.33749803,144.12,144.05,180.21944247]
[1768687445394,3.33749803,144.12,144.06,264.06629462]
[1768687446098,3.33749803,144.12,144.06,1.72629462]
[1768687446298,3.33749803,144.12,144.07,262.36]
[1768687450097,3.29330191,144.1,144.04,1.72629462]
[1768687450300,3.33749803,144.12,144.07,3.27730904]
[1768687450603,3.29330191,144.12,144.07,3.27730904]
[1768687450996,3.29330191,144.14,144.07,3.27730904]
[1768687451700,3.29330191,144.13,144.07,3.27730904]
[1768687453603,3.29330191,144.13,144.08,1.72629462]
[1768687454005,6.2462,144.14,144.1,1.72629462]
[1768687454204,3.29330191,144.15,144.1,5.00360366]
[1768687455004,3.29330191,144.15,144.11,0.04523037]
[1768687458193,1.72629462,144.22,144.12,5.00360366]
[1768687458405,3.29330191,144.19,144.14,1.72629462]
[1768687459107,3.29330191,144.19,144.15,0.0460812]
[1768687485621,3.29330191,144.19,144.12,7.97309462]
[1768687485921,3.14993472,144.18,144.11,3.22481725]
[1768687486914,3.14993472,144.17,144.11,3.22481725]
[1768687487918,0.04626845,144.15,144.11,3.22481725]
[1768687491926,0.04626845,144.15,144.11,9.47201725]
[1768687497431,3.11683284,144.15,144.11,6.2472]
[1768687498730,0.04626845,144.15,144.11,6.2472]
[1768687499634,0.04626845,144.15,144.11,268.5472]
[1768687502437,0.04626845,144.15,144.11,271.54103825]
[1768687502734,0.04626845,144.15,144.11,273.26685071]
[1768687502935,3.07056439,144.17,144.11,273.26685071]
[1768687504940,3.07056439,144.17,144.13,0.04719993]
[1768687505534,7.96961246,144.2,144.13,4.76685064]
[1768687505535,3.07056439,144.19,144.13,4.76685064]
[1768687513650,9.31436439,144.2,144.14,2.99383825]
[1768687530475,3.22046114,144.19,144.14,2.99383825]
[1768687583920,3.1678747,144.21,144.14,9.23973825]
[1768687584125,3.1678747,144.21,144.15,3.27558302]
[1768687584828,3.1678747,144.21,144.17,0.04747358]
[1768687618667,9.4109747,144.21,144.17,0.04747358]
[1768687620469,9.4109747,144.21,144.15,3.27558302]
[1768687622068,0.04504347,144.19,144.15,3.27558302]
[1768687639784,3.20825708,144.19,144.14,263.96478623]
[1768687639981,3.20825708,144.19,144.14,267.01233212]
[1768687649397,3.20825708,144.19,144.14,265.28754589]
[1768687649601,3.20825708,144.19,144.14,262.24]
[1768687650790,9.34828555,144.18,144.14,262.24]
[1768687650993,3.10378555,144.17,144.09,169.5563328]
[1768687651191,3.10378555,144.16,144.1,262.24]
[1768687651595,9.35008555,144.14,144.1,262.24]
[1768687651796,3.10378555,144.13,144.1,233.48055416]
[1768687652001,3.10378555,144.13,144.08,1.23849319]
[1768687652804,9.35038555,144.13,144.08,1.23849319]
[1768687659808,9.52699782,144.12,144.06,263.56060189]
[1768687660701,0.04516769,144.1,144.06,263.56060189]
[1768687677728,0.04516769,144.1,144.06,262.32]
[1768687678625,3.27297606,144.1,144.06,262.32]
[1768687681040,3.27297606,144.1,144.05,262.38]
[1768687681226,3.27297606,144.1,144.02,1.72702826]
[1768687681227,3.27297606,144.1,144.03,262.38]
[1768687681431,9.47700837,144.07,144.03,262.38]
[1768687681834,3.22780837,144.07,143.98,1.24110006]
[1768687682130,3.22780837,144.07,144.0,2.96812832]
[1768687683035,6.2496,144.06,144.0,2.96812832]
[1768687683235,3.22780837,144.05,143.99,1.24110006]
[1768687683536,3.22780837,144.08,144.01,1.24110006]
[1768687684536,9.47710837,144.07,144.01,2.96812832]
[1768687685038,0.04479322,144.06,144.01,2.96812832]
[1768687699946,6.29439322,144.06,144.01,2.96812832]
[1768687701548,6.29439322,144.06,144.01,1.24110006]
[1768687714366,6.25,144.05,144.01,1.24110006]
[1768687727876,3.27858775,144.06,144.01,1.24110006]
[1768687742378,3.27858775,144.06,143.99,265.37273532]
[1768687745985,3.27858775,144.06,143.99,263.64433432]
[1768687746189,3.27858775,144.06,143.99,265.37273532]
[1768687747190,3.27858775,144.06,143.99,263.64433432]
[1768687747384,3.27858775,144.06,143.99,265.37273532]
[1768687747688,3.27858775,144.06,143.99,263.64433432]
[1768687748189,3.27858775,144.06,144.0,1.24433432]
[1768687761207,9.52818775,144.06,144.0,1.24433432]
[1768687772415,3.30352886,144.05,144.0,1.24433432]
[1768687779223,0.04479322,144.06,144.0,2.97273532]
[1768687779422,0.04479322,144.06,144.01,1.24387925]
[1768687781514,9.27710936,144.06,144.0,146.88800542]
[1768687781716,2.98271614,144.05,144.0,146.88800542]
[1768687782521,2.98271614,144.05,144.0,145.15960442]
[1768687790427,2.98271614,144.05,144.01,262.5]
[1768687791623,2.98271614,144.05,144.0,145.15960442]
[1768687791829,2.98271614,144.05,144.01,262.5]
[1768687794630,2.98271614,144.05,144.0,146.40371489]
[1768687794825,2.98271614,144.05,144.01,262.5]
[1768687800330,3.24383301,144.04,143.97,7.49731047]
[1768687800534,3.24383301,144.04,143.98,262.5]
[1768687801128,1.72849193,144.06,143.94,265.4726024]
[1768687801129,3.24383301,144.02,143.94,265.4726024]
[1768687801334,3.288306,144.02,143.95,1.24411047]
[1768687802926,3.24383301,144.01,143.95,1.24411047]
[1768687803946,6.29607299,144.02,143.96,2.9726024]
[1768687803947,0.04447299,144.02,143.96,2.9726024]
[1768687804232,0.04447299,144.02,143.98,2.9726024]
[1768687804436,3.24383301,144.03,143.99,262.52]
[1768687805723,0.04373887,144.02,143.99,262.52]
[1768687816038,0.04373887,144.02,143.99,263.76411047]
[1768687825642,0.04373887,144.02,143.97,1.24488875]
[1768687825942,3.18596918,144.02,143.98,262.56]
[1768687837159,9.43726918,144.02,143.98,262.56]
[1768687841367,6.2518,144.01,143.98,251.9112]
[1768687841563,6.2518,144.01,143.97,1.24488875]
[1768687841759,6.2518,144.01,143.97,210.12488875]
[1768687849070,6.2518,144.01,143.97,1.24488875]
[1768687858980,6.2518,144.01,143.96,1.72945157]
[1768687859184,9.40556387,144.01,143.96,1.72945157]
[1768687860590,9.40556387,144.01,143.95,1.24545354]
[1768687860890,9.40556387,144.01,143.95,2.97490511]
[1768687863294,9.40556387,144.01,143.96,1.24545354]
[1768687867496,6.2522,144.0,143.95,1.72945157]
[1768687868899,0.04364036,143.99,143.95,1.72945157]
[1768687869202,6.29634036,143.99,143.94,404.80981002]
[1768687869395,6.29634036,143.99,143.94,406.53926159]
[1768687874002,6.29634036,143.99,143.94,404.80981002]
[1768687874402,6.29634036,143.99,143.95,1.24545354]
[1768687893216,6.29634036,143.99,143.94,262.58]
[1768687900422,9.5983872,143.99,143.93,19.30214336]
[1768687900724,3.30204684,143.98,143.94,262.62]
[1768687904426,6.29634036,143.99,143.94,262.62]
[1768687906632,0.04364036,143.99,143.94,262.62]
[1768687908235,0.04364036,143.99,143.94,263.8665504]
[1768687908734,0.04364036,143.99,143.94,270.1212504]
[1768687915937,0.04364036,143.99,143.95,6.2542]
[1768687922141,0.04364036,143.99,143.95,268.8942]
[1768687929043,0.04364036,143.99,143.95,270.14431014]
[1768687937350,0.04364036,143.99,143.95,271.87443796]
[1768687940354,3.30204684,144.0,143.95,271.87443796]
[1768687945358,3.0203498,144.02,143.95,271.87443796]
[1768687955772,3.0203498,144.02,143.96,1.24644088]
[1768687958071,3.0203498,144.02,143.96,7.50024088]
[1768687958274,3.0203498,144.02,143.97,1.24644088]
[1768687958465,3.0203498,144.02,143.97,2.9765687]
[1768687964672,3.0203498,144.02,143.97,1.24644088]
[1768687980289,3.11279657,144.01,143.94,1.24552311]
[1768687980484,3.11279657,144.0,143.93,16.32594428]
[1768687980887,3.11279657,143.97,143.93,16.32594428]
[1768687981993,3.11279657,143.96,143.93,3.92e-06]
[1768687982192,3.11279657,143.96,143.9,1.73087074]
[1768687983589,3.11279657,143.96,143.88,1.24552311]
[1768687983893,3.11279657,143.96,143.9,1.73087074]
[1768687984298,3.11279657,143.95,143.9,1.73087074]
[1768687985397,3.11279657,143.95,143.89,1.73087074]
[1768687985795,9.36719657,143.95,143.88,1.24552311]
[1768687985995,9.36719657,143.95,143.89,1.73087074]
[1768687986995,9.36719657,143.95,143.88,1.24552311]
[1768687987490,3.11279657,143.95,143.9,9.385e-05]
[1768687988197,3.11279657,143.95,143.88,1.73087074]
[1768687988599,9.36719657,143.95,143.88,1.73087074]
[1768687990294,3.11279657,143.95,143.86,268.938]
[1768687990501,3.11279657,143.95,143.89,1.73087074]
[1768687991802,9.36649657,143.97,143.89,1.73087074]
[1768687991994,9.36679657,143.96,143.91,1.73087074]
[1768687992195,3.11279657,143.95,143.88,1.73087074]
[1768687992696,3.11279657,143.95,143.87,1.73087074]
[1768687993902,9.36729657,143.95,143.87,1.73087074]
[1768687995402,9.36729657,143.95,143.87,7.98857074]
[1768687995603,3.11279657,143.95,143.87,1.73087074]
[1768687996902,3.11279657,143.95,143.88,6.2573]
[1768687998600,3.11279657,143.95,143.9,0.04759142]
[1768688000599,3.11279657,143.93,143.86,268.938]
[1768688000803,3.11279657,143.93,143.87,0.04768527]
[1768688002094,7.98587074,143.94,143.86,262.68]
[1768688002095,0.05249472,143.91,143.86,262.68]
[1768688002298,3.08260178,143.91,143.86,262.68]
[1768688003305,3.08260178,143.91,143.85,1.77963751]
[1768688004003,3.08260178,143.91,143.85,8.03813751]
[1768688004706,3.08260178,143.91,143.88,1.73087074]
[1768688012208,3.08260178,143.91,143.85,0.04876677]
[1768688012508,3.08260178,143.91,143.88,1.73087074]
[1768688015114,3.08260178,143.91,143.87,1.73087074]
[1768688017011,3.08260178,143.91,143.85,1.77963751]
[1768688018915,3.08260178,143.91,143.84,1.73087074]
[1768688019211,3.13507045,143.9,143.84,1.73087074]
[1768688019615,3.13507045,143.9,143.83,3.50989522]
[1768688019914,3.13507045,143.89,143.83,9.76929522]
[1768688020109,3.13507045,143.89,143.83,8.03842448]
[1768688020507,0.05164588,143.87,143.83,8.03842448]
[1768688021315,0.05164588,143.87,143.83,1.77902448]
[1768688024818,0.05164588,143.87,143.81,8.03932448]
[1768688025014,0.05164588,143.87,143.81,9.77019522]
[1768688025324,3.18671633,143.87,143.8,1.77902448]
[1768688025914,3.13507045,143.87,143.8,1.77902448]
[1768688026218,0.04707169,143.85,143.8,1.77902448]
[1768688026516,3.18214214,143.85,143.8,1.77902448]
[1768688026718,3.18214214,143.85,143.78,1.77902448]
[1768688027221,3.13507045,143.84,143.78,1.77902448]
[1768688028717,3.13507045,143.84,143.76,3.50989522]
[1768688028920,3.13507045,143.84,143.79,1.77902448]
[1768688029318,3.13507045,143.84,143.77,3.50989522]
[1768688029715,0.04442972,143.83,143.77,3.50989522]
[1768688029915,0.04442972,143.83,143.78,1.77902448]
[1768688031716,9.39357045,143.86,143.79,3.50989522]
[1768688032119,9.39357045,143.86,143.8,1.78256685]
[1768688032818,97.3146,143.92,143.82,1.78256685]
[1768688033013,2.9840243,143.9,143.82,1.78256685]
[1768688033322,2.9840243,143.89,143.82,1.78256685]
[1768688033515,2.9840243,143.92,143.86,1.78256685]
[1768688034726,2.9840243,143.92,143.87,1.73087074]
[1768688034925,2.9840243,143.92,143.87,3.51343759]
[1768688035619,2.9840243,143.92,143.87,1.78256685]
[1768688036522,2.9840243,143.94,143.87,1.78256685]
[1768688036723,2.9840243,143.94,143.88,1.78256685]
[1768688075758,9.2388243,143.94,143.88,1.78256685]
[1768688076159,3.17476836,143.93,143.88,1.78256685]
[1768688117698,3.30283091,143.95,143.88,1.78256685]
[1768688117901,3.30283091,143.95,143.89,1.77505277]
[1768688119602,3.30283091,143.95,143.9,3.50644209]
[1768688124607,6.2533,143.98,143.9,3.50644209]
[1768688124809,3.09905971,143.97,143.91,1.77531201]
[1768688131413,3.09905971,143.96,143.91,1.77531201]
[1768688151026,9.3155583,143.98,143.92,1.77543117]
[1768688151218,11.04694762,143.98,143.92,1.77543117]
[1768688151716,3.0622583,143.97,143.92,1.77543117]
[1768688163126,3.0622583,143.97,143.92,8.03093117]
[1768688163727,3.04202425,143.99,143.93,1.77557295]
[1768688165421,3.04202425,143.99,143.93,8.03057295]
[1768688167034,3.04202425,143.99,143.94,6.2546]
[1768688167834,3.04202425,144.01,143.95,1.77557295]
[1768688172941,3.04202425,144.01,143.94,6.2546]
[1768688173437,3.04202425,144.01,143.94,8.03017295]
[1768688176742,3.04202425,144.01,143.95,1.77557295]
[1768688180044,3.04202425,144.01,143.95,8.02977295]
[1768688180239,3.04202425,144.01,143.95,1.77557295]
[1768688181842,3.04202425,144.01,143.97,6.2534]
[1768688189548,2.425e-05,144.01,143.96,3.29852138]
[1768688189751,1.72978717,144.04,143.96,3.29852138]
[1768688190756,1.72978717,144.04,143.97,6.2532]
[1768688191654,3.03129651,144.03,143.97,6.2532]
[1768688196051,3.03129651,144.03,143.97,9.26804918]
[1768688199661,3.03129651,144.03,143.98,3.01484918]
[1768688200764,4.89843369,144.05,143.99,3.01484918]
[1768688203161,3.16864652,144.04,143.99,3.01484918]
[1768688203369,3.16864652,144.04,143.99,9.26724918]
[1768688203670,3.16864652,144.07,143.99,3.01484918]
[1768688204769,3.16864652,144.07,144.0,6.252]
[1768688209573,3.16864652,144.07,144.0,9.26684918]
[1768688211562,3.16864652,144.06,144.0,9.26684918]
[1768688214078,3.16864652,144.06,144.01,3.12764791]
[1768688214574,3.16864652,144.06,144.01,9.37924791]
[1768688235601,3.16864652,144.06,144.01,3.12764791]
[1768688243707,3.02439584,144.07,144.01,3.12764791]
[1768688251016,9.27359584,144.07,144.01,3.12764791]
[1768688260727,9.27359584,144.07,144.01,4.85598863]
[1768688262230,9.27359584,144.07,144.01,3.12764791]
[1768688270646,3.02439584,144.07,144.01,3.12764791]
[1768688301180,3.02439584,144.07,144.0,6.252]
[1768688304381,3.02439584,144.07,144.0,9.46499275]
[1768688304580,3.24558019,144.03,143.94,1.7283826]
[1768688304779,4.97396279,144.02,143.94,1.7283826]
[1768688305379,3.24558019,144.01,143.94,6.2545]
[1768688306679,3.24558019,144.01,143.95,3.21299275]
[1768688310987,3.24558019,144.01,143.95,4.94137535]
[1768688311988,3.24558019,144.01,143.96,3.21299275]
[1768688313390,3.24558019,144.01,143.96,4.94137535]
[1768688325801,3.24558019,144.01,143.96,3.21299275]
[1768688329711,3.29206699,144.03,143.96,9.46649275]
[1768688329901,5.02044959,144.03,143.96,9.46649275]
[1768688330305,5.02044959,144.03,143.97,6.2534]
[1768688331203,3.29206699,144.03,143.98,9.3937698]
[1768688331407,3.29206699,144.05,143.99,3.1409698]
[1768688332815,3.29206699,144.05,143.99,9.3934698]
[1768688335619,3.29206699,144.05,144.0,3.12542848]
[1768688341619,4.76534344,144.07,144.01,3.12542848]
[1768688350721,3.03696084,144.06,144.01,3.12542848]
[1768688350926,3.03696084,144.06,143.99,3.12542848]
[1768688351120,4.76534344,144.05,143.99,3.12542848]
[1768688351421,4.76594613,144.05,143.99,3.12542848]
[1768688351813,4.76594613,144.05,143.99,9.37782848]
[1768688355824,3.03696084,144.05,143.99,9.37782848]
[1768688372150,3.05918243,144.04,143.99,3.12542848]
[1768688373760,9.30978243,144.04,143.99,3.12542848]
[1768688382154,9.49744842,144.03,143.97,3.05263325]
[1768688387571,3.24644842,144.02,143.96,1.72898529]
[1768688387866,3.24644842,144.02,143.96,4.78161854]
[1768688396169,3.24644842,144.02,143.96,3.05263325]
[1768688401374,2.98309902,144.01,143.94,264.26898529]
[1768688401576,2.98309902,144.01,143.94,265.61468577]
[1768688402270,2.98309902,144.01,143.94,271.86928577]
[1768688402569,2.98309902,143.99,143.94,3.07468577]
[1768688408680,2.98309902,143.98,143.91,6.2557]
[1768688408877,2.98309902,143.98,143.91,9.33038577]
[1768688414081,2.98309902,143.98,143.92,3.07468577]
[1768688421186,2.98309902,143.97,143.9,267.4053259]
[1768688422084,2.98309902,143.97,143.91,3.1283485]
[1768688426683,3.22432224,143.96,143.91,3.1283485]
[1768688427386,9.47832224,143.96,143.91,3.1283485]
[1768688432292,3.22432224,143.96,143.91,3.1283485]
[1768688466022,9.42529475,143.97,143.91,3.1283485]
[1768688466224,9.42529475,143.97,143.91,4.85898863]
[1768688470023,6.2529,143.99,143.93,5.01642314]
[1768688470830,6.2529,143.99,143.95,0.05058541]
[1768688472029,3.17179475,143.98,143.95,0.05058541]
[1768688475643,3.17179475,143.97,143.9,6.2562]
[1768688476438,7.98362597,143.98,143.9,6.2562]
[1768688476439,4.90222072,143.96,143.9,6.2562]
[1768688476839,0.04735265,143.95,143.9,6.2562]
[1768688477237,0.04735265,143.95,143.9,9.54198301]
[1768688479940,0.04735265,143.95,143.9,3.28578301]
[1768688488847,0.04735265,143.95,143.91,3.00979297]
[1768688490243,11.19305344,143.98,143.91,3.00979297]
[1768688492754,11.19305344,143.98,143.93,0.04465645]
[1768688495258,3.04518171,143.97,143.93,0.04465645]
[1768688497969,6.2532,143.98,143.93,3.2947912]
[1768688498259,9.29838171,143.98,143.93,3.2947912]
[1768688514876,3.04518171,143.98,143.93,3.2947912]
[1768688522078,3.07936415,144.0,143.94,3.14276427]
[1768688522379,4.80979012,144.0,143.94,3.14276427]
[1768688522570,3.07936415,143.99,143.94,3.14276427]
[1768688523274,3.07936415,143.99,143.93,6.29975645]
[1768688526974,3.07936415,143.99,143.93,9.44252072]
[1768688532385,1.73042597,143.98,143.93,3.18742072]
[1768688532885,4.80979012,143.99,143.93,3.18742072]
[1768688534281,3.07936415,143.98,143.93,3.18742072]
[1768688534484,3.07936415,143.98,143.93,0.04465645]
[1768688535286,4.81003249,143.98,143.93,0.04465645]
[1768688538789,3.07936415,143.98,143.93,0.04465645]
[1768688544095,3.26182787,143.96,143.93,0.04465645]
[1768688544486,3.26182787,143.96,143.9,3.06082296]
[1768688549598,3.26182787,143.95,143.88,3.06082296]
[1768688554100,3.25851382,143.94,143.88,3.06082296]
[1768688583127,3.2096473,143.93,143.88,3.06082296]
[1768688588227,3.2096473,143.93,143.87,7.98806834]
[1768688588529,3.2096473,143.93,143.87,11.08301278]
[1768688597443,3.2096473,143.93,143.87,11.08374146]
[1768688600450,6.2549,143.94,143.88,3.09494444]
[1768688605852,9.43694905,143.94,143.88,3.09494444]
[1768688611553,3.18204905,143.94,143.88,3.09494444]
[1768688627182,3.18204905,143.94,143.87,7.98879702]
[1768688627679,3.18204905,143.94,143.87,11.29038659]
[1768688638681,3.18204905,143.94,143.88,3.08209684]
[1768688663410,3.18204905,143.94,143.9,0.04655341]
[1768688673725,3.23009488,143.96,143.91,1.73150774]
[1768688675026,3.23009488,143.96,143.91,4.83243647]
[1768688681126,3.23009488,143.96,143.9,0.04655341]
[1768688681334,4.96160262,143.92,143.86,265.76092873]
[1768688682128,3.23009488,143.92,143.86,265.76092873]
[1768688682734,0.05255253,143.9,143.86,265.76092873]
[1768688692340,0.05255253,143.9,143.86,267.49243647]
[1768688700250,9.5275982,143.94,143.87,3.14243738]
[1768688700447,3.2726982,143.93,143.87,3.14243738]
[1768688703853,6.2549,143.94,143.89,3.14243738]
[1768688704042,3.2726982,143.95,143.89,3.14243738]
[1768688704652,3.2726982,143.95,143.88,1.73150774]
[1768688704852,3.2726982,143.94,143.88,1.73150774]
[1768688707752,3.2726982,143.94,143.88,4.87394512]
[1768688708756,3.2726982,143.92,143.84,3.14243738]
[1768688709851,3.2726982,143.91,143.85,3.14243738]
[1768688717362,3.2726982,143.91,143.85,4.87448554]
[1768688722866,3.2726982,143.91,143.82,3.29483926]
[1768688723071,3.08711299,143.89,143.82,3.29483926]
[1768688723769,3.08711299,143.88,143.82,3.29483926]
[1768688726070,9.34461299,143.88,143.79,9.55593926]
[1768688726275,3.08711299,143.87,143.81,1.73204816]
[1768688726869,3.08711299,143.87,143.81,5.02688742]
[1768688732776,3.08711299,143.86,143.79,267.82688742]
[1768688732980,3.08711299,143.86,143.8,3.29483926]
[1768688734780,3.08711299,143.86,143.81,1.73204816]
[1768688734981,3.08711299,143.86,143.81,4.98557803]
[1768688736283,3.08711299,143.86,143.81,3.25352987]
[1768688736576,3.08711299,143.86,143.81,4.98557803]
[1768688740285,3.08711299,143.86,143.82,0.04578474]
[1768688741982,9.34541299,143.86,143.82,0.04578474]
[1768688748894,6.2583,143.86,143.82,3.29931461]
[1768688759891,6.2583,143.86,143.82,0.04578474]
[1768688761497,9.28012123,143.86,143.82,0.04578474]
[1768688762802,3.02182123,143.86,143.82,0.04578474]
[1768688774318,9.28012123,143.86,143.82,0.04578474]
[1768688774514,3.02182123,143.85,143.82,0.04578474]
[1768688789136,3.02182123,143.85,143.78,264.59340536]
[1768688789532,3.06772545,143.85,143.78,264.59340536]
[1768688789937,3.06772545,143.85,143.78,267.87433457]
[1768688790839,3.06772545,143.85,143.78,274.13593457]
[1768688791841,3.06772545,143.85,143.78,272.40252921]
[1768688792035,3.06772545,143.85,143.78,274.13593457]
[1768688792841,3.06772545,143.85,143.78,272.40252921]
[1768688793042,3.06772545,143.85,143.78,274.13593457]
[1768688804048,3.06772545,143.85,143.79,3.08277556]
[1768688815553,3.20735252,143.84,143.77,3.07437807]
[1768688816457,0.04445745,143.82,143.77,3.07437807]
[1768688818057,0.04445745,143.82,143.77,4.80778343]
[1768688818261,0.04445745,143.82,143.78,3.07437807]
[1768688820654,0.04445745,143.82,143.79,4.80778343]
[1768688820960,6.2588,143.85,143.79,4.85728568]
[1768688821359,9.46615252,143.85,143.79,4.85728568]
[1768688821658,3.20735252,143.85,143.8,3.07437807]
[1768688821862,3.20735252,143.85,143.79,0.04950225]
[1768688822052,3.20735252,143.85,143.79,3.12388032]
[1768688822751,9.46615252,143.85,143.79,3.12388032]
[1768688822952,3.20735252,143.85,143.79,3.12388032]
[1768688823758,9.46665252,143.84,143.79,3.12388032]
[1768688825162,9.46665252,143.84,143.79,0.04950225]
[1768688825359,9.46695252,143.83,143.79,0.04950225]
[1768688833271,3.20735252,143.82,143.79,0.04950225]
[1768688838874,6.2596,143.83,143.73,3.07437807]
[1768688838875,3.20735252,143.8,143.73,3.07437807]
[1768688839267,3.20735252,143.8,143.75,3.07437807]
[1768688840471,0.04975593,143.79,143.75,3.07437807]
[1768688841369,6.2605,143.81,143.76,1.73415407]
[1768688841767,9.46785252,143.81,143.76,1.73415407]
[1768688844275,97.3677,143.84,143.7,97.4586]
[1768688844276,3.21953096,143.8,143.72,3.26656508]
[1768688844474,3.21953096,143.8,143.72,5.00071915]
[1768688845873,9.48093096,143.79,143.72,5.00071915]
[1768688846876,3.21953096,143.78,143.72,3.26656508]
[1768688848276,3.21953096,143.78,143.7,11.26561915]
[1768688849075,3.21953096,143.76,143.69,3.26656508]
[1768688850782,3.21953096,143.75,143.69,3.26656508]
[1768688853285,3.21953096,143.75,143.69,5.00071915]
[1768688854578,3.21953096,143.75,143.7,3.11378749]
[1768688858085,3.26860719,143.77,143.7,3.11378749]
[1768688858282,3.26860719,143.77,143.71,1.73415407]
[1768688858586,3.26860719,143.77,143.72,3.11378749]
[1768688860891,3.26860719,143.77,143.7,4.84794156]
[1768688861081,3.26860719,143.77,143.7,267.88794156]
[1768688861281,1.73415407,143.76,143.66,3.11378749]
[1768688861485,3.26860719,143.77,143.66,3.11378749]
[1768688861486,3.26860719,143.72,143.66,3.11378749]
[1768688861689,3.26860719,143.72,143.66,4.84794156]
[1768688862189,3.26860719,143.72,143.67,3.11378749]
[1768688862491,3.26860719,143.74,143.67,3.11378749]
[1768688862792,3.26860719,143.74,143.68,1.73415407]
[1768688864193,3.26860719,143.74,143.68,4.84794156]
[1768688866195,3.26860719,143.74,143.69,263.06]
[1768688869697,3.26860719,143.74,143.68,3.11378749]
[1768688869889,3.26860719,143.74,143.69,263.08]
[1768688873598,3.26860719,143.74,143.69,266.09260003]
[1768688875598,5.03154656,143.76,143.69,266.09260003]
[1768688881198,6.2624,143.77,143.7,3.01260003]
[1768688881406,3.29739249,143.79,143.71,1.73415407]
[1768688881702,3.29739249,143.79,143.72,3.01260003]
[1768688884002,3.29739249,143.79,143.72,6.2641]
[1768688884201,3.29739249,143.79,143.73,3.01260003]
[1768688886106,3.29739249,143.79,143.73,4.7467541]
[1768688891606,6.2611,143.8,143.74,3.01260003]
[1768688893209,9.55849249,143.8,143.74,3.01260003]
[1768688895012,3.29739249,143.8,143.74,3.01260003]
[1768688896520,3.29739249,143.79,143.72,4.7467541]
[1768688897208,3.29739249,143.79,143.72,1.73415407]
[1768688897413,3.29739249,143.79,143.73,3.01260003]
[1768688897814,9.55869249,143.79,143.73,3.01260003]
[1768688901622,3.29739249,143.79,143.73,3.01260003]
[1768688904131,3.29739249,143.79,143.75,0.04563658]
[1768688910740,3.11821171,143.81,143.75,3.22132288]
[1768688910939,3.11821171,143.81,143.75,4.9563508]
[1768688912531,3.11821171,143.81,143.75,11.2191508]
[1768688915041,3.11821171,143.81,143.75,9.48412288]
[1768688923550,3.11821171,143.81,143.76,3.14874948]
[1768688925450,9.38510403,143.83,143.76,3.14874948]
[1768688929748,3.12530403,143.83,143.77,3.14874948]
[1768688947358,3.12530403,143.83,143.77,9.41074948]
[1768688947764,3.12530403,143.83,143.78,3.22531477]
[1768688959883,3.12530403,143.83,143.78,9.48691477]
[1768688969197,9.43021648,143.85,143.78,9.48691477]
[1768688970296,3.17131648,143.85,143.78,9.48691477]
[1768688973700,3.17131648,143.85,143.79,3.13723418]
[1768689001110,1.73382357,143.84,143.75,3.07283369]
[1768689001314,1.73382357,143.82,143.75,3.07283369]
[1768689001711,1.73382357,143.8,143.73,3.07283369]
[1768689001910,3.05222392,143.79,143.73,3.07283369]
[1768689002510,3.05222392,143.79,143.73,9.33663369]
[1768689008111,3.05222392,143.78,143.72,3.07283369]
[1768689011117,3.05222392,143.78,143.73,1.73382357]
[1768689011418,3.05222392,143.78,143.73,4.80665726]
[1768689018131,3.05222392,143.78,143.73,3.07283369]
[1768689026246,6.2627,143.76,143.7,2.97946288]
[1768689026448,3.17068849,143.75,143.7,2.97946288]
[1768689030745,3.17068849,143.75,143.68,274.00048568]
[1768689031647,3.17068849,143.75,143.69,2.97946288]
[1768689031840,9.43378849,143.75,143.69,2.97946288]
[1768689033145,9.43428849,143.74,143.67,263.04]
[1768689033345,9.43428849,143.74,143.67,267.75458568]
[1768689033540,3.17068849,143.73,143.67,2.97946288]
[1768689033735,3.17068849,143.73,143.65,3.21310139]
[1768689033940,3.17068849,143.73,143.66,4.94822419]
[1768689034145,3.17068849,143.73,143.66,3.21310139]
[1768689034446,3.17068849,143.73,143.66,4.94822419]
[1768689034652,3.17068849,143.73,143.67,1.7351228]